[Event "Titled Tuesday Blitz June 6 Late 2023"]
[White "Krsnik Cohar, Ivan Vihor"]
[Black "Caruana, Fabiano"]
[WhiteFideId "14520044"]
[BlackFideId "2020009"]
[WhiteElo "2414"]
[BlackElo "2832"]
[Result "1/2-1/2"]
[Round "1"]
[TimeControl "180+2"]
[Date "2023.06.07"]
[WhiteClock "0:00:03"]
[BlackClock "0:00:37"]
[Board "3"]

1. e4 {[%clk 0:02:54]}  b6 {[%clk 0:03:00]} 2. Nc3 {[%clk 0:02:53]}  Bb7 {[%clk 0:03:00]} 3. d4 {[%clk 0:02:53]}  e6 {[%clk 0:03:01]} 4. Bd3 {[%clk 0:02:51]}  Nf6 {[%clk 0:03:01]} 5. Nge2 {[%clk 0:02:50]}  d5 {[%clk 0:03:01]} 6. exd5 {[%clk 0:02:45]}  Nxd5 {[%clk 0:03:02]} 7. O-O {[%clk 0:02:45]}  Nxc3 {[%clk 0:02:56]} 8. Nxc3 {[%clk 0:02:42]}  Bd6 {[%clk 0:02:54]} 9. Qg4 {[%clk 0:02:33]}  g6 {[%clk 0:02:51]} 10. Bg5 {[%clk 0:02:21]}  Be7 {[%clk 0:02:50]} 11. Bxe7 {[%clk 0:02:19]}  Qxe7 {[%clk 0:02:51]} 12. d5 {[%clk 0:02:17]}  e5 {[%clk 0:02:48]} 13. Bb5+ {[%clk 0:02:14]}  Kf8 {[%clk 0:02:47]} 14. f4 {[%clk 0:02:08]}  a6 {[%clk 0:02:37]} 15. Ba4 {[%clk 0:01:24]}  b5 {[%clk 0:02:34]} 16. Bb3 {[%clk 0:01:24]}  Nd7 {[%clk 0:02:33]} 17. Rae1 {[%clk 0:01:17]}  e4 {[%clk 0:02:20]} 18. f5 {[%clk 0:00:56]}  Nf6 {[%clk 0:01:37]} 19. Qh4 {[%clk 0:00:51]}  Rg8 {[%clk 0:01:38]} 20. Nxe4 {[%clk 0:00:40]}  Nxe4 {[%clk 0:01:38]} 21. Qxe7+ {[%clk 0:00:39]}  Kxe7 {[%clk 0:01:39]} 22. Rxe4+ {[%clk 0:00:40]}  Kf8 {[%clk 0:01:24]} 23. f6 {[%clk 0:00:37]}  a5 {[%clk 0:01:09]} 24. a3 {[%clk 0:00:16]}  Ra6 {[%clk 0:00:59]} 25. Re7 {[%clk 0:00:12]}  Rxf6 {[%clk 0:00:59]} 26. Rxc7 {[%clk 0:00:12]}  Rxf1+ {[%clk 0:01:00]} 27. Kxf1 {[%clk 0:00:12]}  Ba8 {[%clk 0:01:00]} 28. d6 {[%clk 0:00:09]}  Kg7 {[%clk 0:01:00]} 29. Rxf7+ {[%clk 0:00:08]}  Kh6 {[%clk 0:01:01]} 30. d7 {[%clk 0:00:07]}  Rd8 {[%clk 0:01:01]} 31. Re7 {[%clk 0:00:06]}  Bc6 {[%clk 0:00:54]} 32. Be6 {[%clk 0:00:06]}  Kg5 {[%clk 0:00:53]} 33. Rf7 {[%clk 0:00:07]}  b4 {[%clk 0:00:52]} 34. axb4 {[%clk 0:00:07]}  axb4 {[%clk 0:00:53]} 35. c3 {[%clk 0:00:07]}  bxc3 {[%clk 0:00:50]} 36. bxc3 {[%clk 0:00:08]}  h5 {[%clk 0:00:41]} 37. g3 {[%clk 0:00:04]}  h4 {[%clk 0:00:41]} 38. gxh4+ {[%clk 0:00:03]}  Kxh4 {[%clk 0:00:42]} 39. Kf2 {[%clk 0:00:02]}  Kg5 {[%clk 0:00:42]} 40. Kg3 {[%clk 0:00:01]}  Kh6 {[%clk 0:00:40]} 41. h4 {[%clk 0:00:02]}  Ra8 {[%clk 0:00:39]} 42. Re7 {[%clk 0:00:01]}  Rf8 {[%clk 0:00:35]} 43. Re8 {[%clk 0:00:01]}  Rxe8 {[%clk 0:00:35]} 44. dxe8=Q {[%clk 0:00:02]}  Bxe8 {[%clk 0:00:35]} 45. c4 {[%clk 0:00:02]}  g5 {[%clk 0:00:35]} 46. hxg5+ {[%clk 0:00:02]}  Kxg5 {[%clk 0:00:36]} 47. c5 {[%clk 0:00:03]}  Kf6 {[%clk 0:00:37]} 48. Bg4 {[%clk 0:00:03]}  Ke5 {[%clk 0:00:37]} 49. c6 {[%clk 0:00:03]}  Bxc6 {[%clk 0:00:37]} 1/2-1/2


[Site "https://www.chess.com"]

[Event "Titled Tuesday Blitz June 6 Late 2023"]
[White "Kirillov, Dmitry"]
[Black "Kollars, Dmitrij"]
[WhiteFideId "34180572"]
[BlackFideId "12909572"]
[WhiteElo "2161"]
[BlackElo "2584"]
[Result "0-1"]
[Round "1"]
[TimeControl "180+2"]
[Date "2023.06.07"]
[WhiteClock "0:01:15"]
[BlackClock "0:01:18"]
[Board "5"]

1. d4 {[%clk 0:02:56]}  Nf6 {[%clk 0:02:59]} 2. c4 {[%clk 0:02:56]}  e6 {[%clk 0:03:00]} 3. Nc3 {[%clk 0:02:56]}  Bb4 {[%clk 0:02:59]} 4. f3 {[%clk 0:02:56]}  c5 {[%clk 0:02:57]} 5. d5 {[%clk 0:02:55]}  b5 {[%clk 0:02:57]} 6. e4 {[%clk 0:02:50]}  d6 {[%clk 0:02:57]} 7. Ne2 {[%clk 0:02:49]}  bxc4 {[%clk 0:02:54]} 8. Nf4 {[%clk 0:02:49]}  e5 {[%clk 0:02:46]} 9. Ne2 {[%clk 0:02:48]}  Ng8 {[%clk 0:02:43]} 10. Ng3 {[%clk 0:02:46]}  Ne7 {[%clk 0:02:35]} 11. Bxc4 {[%clk 0:02:45]}  O-O {[%clk 0:02:35]} 12. O-O {[%clk 0:02:45]}  f5 {[%clk 0:02:34]} 13. Bg5 {[%clk 0:02:43]}  f4 {[%clk 0:02:33]} 14. Nge2 {[%clk 0:02:43]}  Nd7 {[%clk 0:02:32]} 15. a3 {[%clk 0:02:40]}  Ba5 {[%clk 0:02:31]} 16. Nb5 {[%clk 0:02:37]}  Nb6 {[%clk 0:02:25]} 17. Bd3 {[%clk 0:02:27]}  c4 {[%clk 0:02:17]} 18. Bc2 {[%clk 0:02:25]}  Ba6 {[%clk 0:02:17]} 19. Nbc3 {[%clk 0:02:24]}  Qc7 {[%clk 0:02:11]} 20. Bxe7 {[%clk 0:02:20]}  Qxe7 {[%clk 0:02:11]} 21. Rb1 {[%clk 0:02:19]}  g5 {[%clk 0:02:06]} 22. Kh1 {[%clk 0:02:17]}  Kh8 {[%clk 0:02:05]} 23. Na4 {[%clk 0:02:10]}  Rg8 {[%clk 0:01:55]} 24. Nec3 {[%clk 0:02:08]}  Rab8 {[%clk 0:01:49]} 25. Nxb6 {[%clk 0:02:06]}  Bxb6 {[%clk 0:01:48]} 26. Qe2 {[%clk 0:01:57]}  Bd4 {[%clk 0:01:39]} 27. h3 {[%clk 0:01:49]}  h5 {[%clk 0:01:39]} 28. Kh2 {[%clk 0:01:48]}  g4 {[%clk 0:01:37]} 29. Nd1 {[%clk 0:01:41]}  Qh4 {[%clk 0:01:34]} 30. Qe1 {[%clk 0:01:16]}  g3+ {[%clk 0:01:20]} 31. Kh1 {[%clk 0:01:15]}  Bc8 {[%clk 0:01:18]} 0-1


[Site "https://www.chess.com"]

[Event "Titled Tuesday Blitz June 6 Late 2023"]
[White "Martinez Alcantara, Jose Eduardo"]
[Black "Graif, William"]
[WhiteFideId "3805662"]
[BlackFideId "2609835"]
[WhiteElo "2711"]
[BlackElo "2201"]
[Result "1-0"]
[Round "1"]
[TimeControl "180+2"]
[Date "2023.06.07"]
[WhiteClock "0:01:21"]
[BlackClock "0:00:11"]
[Board "6"]

1. e4 {[%clk 0:03:00]}  e5 {[%clk 0:02:50]} 2. Nf3 {[%clk 0:02:59]}  Bc5 {[%clk 0:02:48]} 3. c3 {[%clk 0:02:58]}  d5 {[%clk 0:02:48]} 4. d4 {[%clk 0:02:57]}  exd4 {[%clk 0:02:46]} 5. exd5 {[%clk 0:02:56]}  Nf6 {[%clk 0:02:45]} 6. cxd4 {[%clk 0:02:55]}  Bb4+ {[%clk 0:02:45]} 7. Nc3 {[%clk 0:02:55]}  O-O {[%clk 0:02:44]} 8. Bd3 {[%clk 0:02:55]}  Re8+ {[%clk 0:02:36]} 9. Be3 {[%clk 0:02:55]}  Nxd5 {[%clk 0:02:32]} 10. O-O {[%clk 0:02:55]}  Bg4 {[%clk 0:01:55]} 11. h3 {[%clk 0:02:44]}  Bxc3 {[%clk 0:01:32]} 12. hxg4 {[%clk 0:02:28]}  Bxb2 {[%clk 0:01:31]} 13. Rb1 {[%clk 0:02:29]}  Ba3 {[%clk 0:00:57]} 14. Bxh7+ {[%clk 0:02:12]}  Kxh7 {[%clk 0:00:53]} 15. Qd3+ {[%clk 0:02:13]}  Kg8 {[%clk 0:00:51]} 16. Qxa3 {[%clk 0:02:14]}  Nb6 {[%clk 0:00:42]} 17. Ne5 {[%clk 0:02:10]}  N8d7 {[%clk 0:00:41]} 18. Nf3 {[%clk 0:01:45]}  Nf6 {[%clk 0:00:37]} 19. Bg5 {[%clk 0:01:46]}  Qe7 {[%clk 0:00:29]} 20. Qxe7 {[%clk 0:01:43]}  Rxe7 {[%clk 0:00:30]} 21. Bxf6 {[%clk 0:01:44]}  gxf6 {[%clk 0:00:30]} 22. Nh4 {[%clk 0:01:45]}  Re4 {[%clk 0:00:29]} 23. Nf5 {[%clk 0:01:45]}  Kh7 {[%clk 0:00:28]} 24. f3 {[%clk 0:01:41]}  Re2 {[%clk 0:00:28]} 25. Rfc1 {[%clk 0:01:28]}  c6 {[%clk 0:00:21]} 26. a4 {[%clk 0:01:29]}  Ra2 {[%clk 0:00:18]} 27. Kh2 {[%clk 0:01:27]}  Rxa4 {[%clk 0:00:17]} 28. Kg3 {[%clk 0:01:27]}  Rd8 {[%clk 0:00:16]} 29. Rh1+ {[%clk 0:01:27]}  Kg8 {[%clk 0:00:16]} 30. Rh6 {[%clk 0:01:22]}  Ra5 {[%clk 0:00:13]} 31. Rbh1 {[%clk 0:01:21]}  Rxf5 {[%clk 0:00:13]} 32. Rh8+ {[%clk 0:01:19]}  Kg7 {[%clk 0:00:12]} 33. R1h7+ {[%clk 0:01:20]}  Kg6 {[%clk 0:00:12]} 34. gxf5+ {[%clk 0:01:20]}  Kxf5 {[%clk 0:00:11]} 35. Rxd8 {[%clk 0:01:21]} 1-0


[Site "https://www.chess.com"]

[Event "Titled Tuesday Blitz June 6 Late 2023"]
[White "Sarana, Alexey"]
[Black "Aydin, Gulenay"]
[WhiteFideId "24133795"]
[BlackFideId "34557431"]
[WhiteElo "2714"]
[BlackElo "2009"]
[Result "1-0"]
[Round "1"]
[TimeControl "180+2"]
[Date "2023.06.07"]
[WhiteClock "0:01:59"]
[BlackClock "0:00:02"]
[Board "8"]

1. d4 {[%clk 0:02:46]}  Nf6 {[%clk 0:02:59]} 2. c4 {[%clk 0:02:46]}  g6 {[%clk 0:02:59]} 3. Nc3 {[%clk 0:02:47]}  Bg7 {[%clk 0:03:00]} 4. g3 {[%clk 0:02:45]}  O-O {[%clk 0:03:00]} 5. Bg2 {[%clk 0:02:45]}  d6 {[%clk 0:03:01]} 6. Nf3 {[%clk 0:02:46]}  Nc6 {[%clk 0:03:01]} 7. O-O {[%clk 0:02:47]}  a6 {[%clk 0:03:01]} 8. b3 {[%clk 0:02:46]}  e5 {[%clk 0:02:51]} 9. Bb2 {[%clk 0:02:46]}  exd4 {[%clk 0:02:36]} 10. Nxd4 {[%clk 0:02:47]}  Nxd4 {[%clk 0:02:35]} 11. Qxd4 {[%clk 0:02:48]}  Nd7 {[%clk 0:02:28]} 12. Qd2 {[%clk 0:02:46]}  Re8 {[%clk 0:02:27]} 13. e4 {[%clk 0:02:46]}  Nf6 {[%clk 0:02:25]} 14. h3 {[%clk 0:02:44]}  Bd7 {[%clk 0:02:24]} 15. Rfe1 {[%clk 0:02:45]}  a5 {[%clk 0:02:19]} 16. Rad1 {[%clk 0:02:42]}  Bc6 {[%clk 0:02:10]} 17. Nd5 {[%clk 0:02:34]}  Nd7 {[%clk 0:01:44]} 18. Bxg7 {[%clk 0:02:31]}  Kxg7 {[%clk 0:01:45]} 19. Qc3+ {[%clk 0:02:31]}  Kg8 {[%clk 0:01:44]} 20. f4 {[%clk 0:02:26]}  Bxd5 {[%clk 0:01:04]} 21. cxd5 {[%clk 0:02:27]}  Qb8 {[%clk 0:00:44]} 22. Kh2 {[%clk 0:02:25]}  b5 {[%clk 0:00:39]} 23. e5 {[%clk 0:02:22]}  Nc5 {[%clk 0:00:35]} 24. e6 {[%clk 0:02:21]}  f5 {[%clk 0:00:28]} 25. Qf6 {[%clk 0:02:13]}  Rf8 {[%clk 0:00:27]} 26. Qg5 {[%clk 0:02:13]}  Qe8 {[%clk 0:00:20]} 27. g4 {[%clk 0:02:06]}  fxg4 {[%clk 0:00:19]} 28. hxg4 {[%clk 0:02:06]}  b4 {[%clk 0:00:16]} 29. f5 {[%clk 0:02:05]}  a4 {[%clk 0:00:17]} 30. f6 {[%clk 0:02:05]}  Qb8 {[%clk 0:00:04]} 31. e7 {[%clk 0:02:00]}  Re8 {[%clk 0:00:02]} 32. Qh6 {[%clk 0:01:59]} 1-0


[Site "https://www.chess.com"]

[Event "Titled Tuesday Blitz June 6 Late 2023"]
[White "Bluebaum, Matthias"]
[Black "Mayeregger, Arnold"]
[WhiteFideId "24651516"]
[BlackFideId "3705226"]
[WhiteElo "2639"]
[BlackElo "2038"]
[Result "1-0"]
[Round "1"]
[TimeControl "180+2"]
[Date "2023.06.07"]
[WhiteClock "0:01:50"]
[BlackClock "0:00:35"]
[Board "10"]

1. d4 {[%clk 0:03:00]}  d5 {[%clk 0:02:58]} 2. c4 {[%clk 0:03:01]}  c6 {[%clk 0:02:58]} 3. Nf3 {[%clk 0:03:01]}  Nf6 {[%clk 0:02:58]} 4. Nc3 {[%clk 0:03:02]}  e6 {[%clk 0:02:57]} 5. Qc2 {[%clk 0:03:03]}  Nbd7 {[%clk 0:02:57]} 6. e4 {[%clk 0:03:03]}  dxe4 {[%clk 0:02:56]} 7. Nxe4 {[%clk 0:03:04]}  Be7 {[%clk 0:02:57]} 8. Bd3 {[%clk 0:03:04]}  O-O {[%clk 0:02:57]} 9. O-O {[%clk 0:03:04]}  b5 {[%clk 0:02:57]} 10. c5 {[%clk 0:03:01]}  Bb7 {[%clk 0:02:54]} 11. Bf4 {[%clk 0:03:00]}  Nxe4 {[%clk 0:02:53]} 12. Bxe4 {[%clk 0:03:01]}  Nf6 {[%clk 0:02:53]} 13. Rad1 {[%clk 0:03:01]}  h6 {[%clk 0:02:51]} 14. Rfe1 {[%clk 0:03:00]}  Nd5 {[%clk 0:02:50]} 15. Bg3 {[%clk 0:02:59]}  a5 {[%clk 0:02:47]} 16. a3 {[%clk 0:02:57]}  b4 {[%clk 0:02:42]} 17. Ne5 {[%clk 0:02:56]}  Bf6 {[%clk 0:02:36]} 18. Nc4 {[%clk 0:02:52]}  Ba6 {[%clk 0:02:27]} 19. Bd6 {[%clk 0:02:52]}  Re8 {[%clk 0:02:25]} 20. Ne5 {[%clk 0:02:52]}  Bxe5 {[%clk 0:02:21]} 21. dxe5 {[%clk 0:02:53]}  bxa3 {[%clk 0:02:12]} 22. bxa3 {[%clk 0:02:54]}  Bb5 {[%clk 0:02:01]} 23. a4 {[%clk 0:02:52]}  Ba6 {[%clk 0:02:00]} 24. Qb3 {[%clk 0:02:52]}  Ra7 {[%clk 0:01:57]} 25. Qg3 {[%clk 0:02:51]}  Qg5 {[%clk 0:01:54]} 26. Rb1 {[%clk 0:02:46]}  Qxg3 {[%clk 0:01:47]} 27. hxg3 {[%clk 0:02:47]}  Nc3 {[%clk 0:01:48]} 28. Bxc6 {[%clk 0:02:39]}  Rc8 {[%clk 0:01:44]} 29. Rb6 {[%clk 0:02:38]}  Nd5 {[%clk 0:01:30]} 30. Bxd5 {[%clk 0:02:36]}  exd5 {[%clk 0:01:31]} 31. c6 {[%clk 0:02:37]}  Bc4 {[%clk 0:01:29]} 32. Reb1 {[%clk 0:02:34]}  Kh7 {[%clk 0:01:28]} 33. Rb7 {[%clk 0:02:30]}  Ra6 {[%clk 0:01:25]} 34. c7 {[%clk 0:02:24]}  Rc6 {[%clk 0:01:10]} 35. R1b6 {[%clk 0:02:22]}  Rxb6 {[%clk 0:01:05]} 36. Rxb6 {[%clk 0:02:23]}  d4 {[%clk 0:01:05]} 37. Rb8 {[%clk 0:02:12]}  Be6 {[%clk 0:01:05]} 38. Kf1 {[%clk 0:02:09]}  Kg6 {[%clk 0:01:01]} 39. Ke2 {[%clk 0:02:09]}  f6 {[%clk 0:01:02]} 40. Kd3 {[%clk 0:02:06]}  fxe5 {[%clk 0:00:56]} 41. Bxe5 {[%clk 0:02:07]}  Kf5 {[%clk 0:00:55]} 42. Kxd4 {[%clk 0:02:07]}  g5 {[%clk 0:00:53]} 43. Bd6 {[%clk 0:02:04]}  Bd7 {[%clk 0:00:52]} 44. Kd5 {[%clk 0:02:04]}  h5 {[%clk 0:00:48]} 45. f3 {[%clk 0:02:03]}  g4 {[%clk 0:00:47]} 46. Bf4 {[%clk 0:02:01]}  h4 {[%clk 0:00:46]} 47. Kd6 {[%clk 0:01:51]}  h3 {[%clk 0:00:37]} 48. fxg4+ {[%clk 0:01:50]}  Kxg4 {[%clk 0:00:35]} 49. gxh3+ {[%clk 0:01:50]} 1-0


[Site "https://www.chess.com"]

[Event "Titled Tuesday Blitz June 6 Late 2023"]
[White "Lazavik, Denis"]
[Black "Fieberg, Samuel"]
[WhiteFideId "13515110"]
[BlackFideId "12901717"]
[WhiteElo "2560"]
[BlackElo "2506"]
[Result "1-0"]
[Round "1"]
[TimeControl "180+2"]
[Date "2023.06.07"]
[WhiteClock "0:00:11"]
[BlackClock "0:00:13"]
[Board "12"]

1. d4 {[%clk 0:03:00]}  d5 {[%clk 0:02:59]} 2. c4 {[%clk 0:03:01]}  e6 {[%clk 0:03:00]} 3. Nf3 {[%clk 0:03:01]}  c5 {[%clk 0:03:00]} 4. cxd5 {[%clk 0:03:01]}  exd5 {[%clk 0:03:01]} 5. g3 {[%clk 0:03:01]}  Nf6 {[%clk 0:03:01]} 6. Bg2 {[%clk 0:03:01]}  Nc6 {[%clk 0:03:02]} 7. O-O {[%clk 0:03:02]}  Be7 {[%clk 0:03:02]} 8. dxc5 {[%clk 0:03:02]}  Bxc5 {[%clk 0:03:02]} 9. Nc3 {[%clk 0:03:02]}  O-O {[%clk 0:03:02]} 10. a3 {[%clk 0:02:49]}  a5 {[%clk 0:02:51]} 11. Bf4 {[%clk 0:02:37]}  h6 {[%clk 0:02:47]} 12. Rc1 {[%clk 0:02:37]}  Bb6 {[%clk 0:02:41]} 13. Na4 {[%clk 0:02:25]}  Be6 {[%clk 0:02:31]} 14. Qb3 {[%clk 0:02:20]}  Ra6 {[%clk 0:02:18]} 15. Qc2 {[%clk 0:01:32]}  Ba7 {[%clk 0:02:03]} 16. Nc5 {[%clk 0:01:29]}  Bxc5 {[%clk 0:02:03]} 17. Qxc5 {[%clk 0:01:29]}  Qb6 {[%clk 0:02:00]} 18. Qc2 {[%clk 0:01:00]}  Raa8 {[%clk 0:01:55]} 19. Rfd1 {[%clk 0:00:58]}  Ne4 {[%clk 0:01:41]} 20. Be3 {[%clk 0:00:57]}  Qb5 {[%clk 0:01:34]} 21. Nd4 {[%clk 0:00:56]}  Nxd4 {[%clk 0:01:34]} 22. Bxd4 {[%clk 0:00:57]}  Bf5 {[%clk 0:01:30]} 23. Qd3 {[%clk 0:00:55]}  Qd7 {[%clk 0:01:19]} 24. Qe3 {[%clk 0:00:54]}  Rfe8 {[%clk 0:01:18]} 25. Qf4 {[%clk 0:00:54]}  Rac8 {[%clk 0:01:13]} 26. Rxc8 {[%clk 0:00:53]}  Rxc8 {[%clk 0:01:13]} 27. Rc1 {[%clk 0:00:23]}  Rxc1+ {[%clk 0:01:08]} 28. Qxc1 {[%clk 0:00:24]}  a4 {[%clk 0:01:00]} 29. f3 {[%clk 0:00:20]}  Nd6 {[%clk 0:00:56]} 30. Kf2 {[%clk 0:00:17]}  Nc4 {[%clk 0:00:56]} 31. Qc3 {[%clk 0:00:17]}  f6 {[%clk 0:00:50]} 32. g4 {[%clk 0:00:17]}  Be6 {[%clk 0:00:49]} 33. e3 {[%clk 0:00:17]}  Qb5 {[%clk 0:00:48]} 34. Bf1 {[%clk 0:00:17]}  Qc6 {[%clk 0:00:43]} 35. Bd3 {[%clk 0:00:17]}  Qc7 {[%clk 0:00:42]} 36. Kg2 {[%clk 0:00:17]}  b5 {[%clk 0:00:40]} 37. Bc2 {[%clk 0:00:16]}  Kf8 {[%clk 0:00:29]} 38. Qb4+ {[%clk 0:00:16]}  Kg8 {[%clk 0:00:23]} 39. Qc3 {[%clk 0:00:15]}  Kf8 {[%clk 0:00:21]} 40. h4 {[%clk 0:00:16]}  Qc8 {[%clk 0:00:19]} 41. Bd1 {[%clk 0:00:12]}  Ne5 {[%clk 0:00:17]} 42. Qxc8+ {[%clk 0:00:12]}  Bxc8 {[%clk 0:00:17]} 43. Be2 {[%clk 0:00:12]}  Bd7 {[%clk 0:00:17]} 44. h5 {[%clk 0:00:11]}  Kf7 {[%clk 0:00:17]} 45. Kg3 {[%clk 0:00:11]}  Nc4 {[%clk 0:00:17]} 46. Kf2 {[%clk 0:00:10]}  Ke6 {[%clk 0:00:18]} 47. Bd3 {[%clk 0:00:10]}  Kd6 {[%clk 0:00:18]} 48. Ke2 {[%clk 0:00:11]}  Be6 {[%clk 0:00:18]} 49. Kd1 {[%clk 0:00:10]}  Bd7 {[%clk 0:00:19]} 50. Kc2 {[%clk 0:00:11]}  Kc6 {[%clk 0:00:19]} 51. Kc3 {[%clk 0:00:11]}  Be6 {[%clk 0:00:19]} 52. Kb4 {[%clk 0:00:11]}  Bd7 {[%clk 0:00:19]} 53. Bg6 {[%clk 0:00:07]}  Kd6 {[%clk 0:00:18]} 54. Bc5+ {[%clk 0:00:06]}  Kc6 {[%clk 0:00:18]} 55. Bf8 {[%clk 0:00:06]}  Nxe3 {[%clk 0:00:14]} 56. Bxg7 {[%clk 0:00:06]}  f5 {[%clk 0:00:14]} 57. Bxh6 {[%clk 0:00:05]}  Nc2+ {[%clk 0:00:11]} 58. Kc3 {[%clk 0:00:05]}  Ne1 {[%clk 0:00:10]} 59. Bxf5 {[%clk 0:00:06]}  Bxf5 {[%clk 0:00:07]} 60. gxf5 {[%clk 0:00:06]}  Nxf3 {[%clk 0:00:07]} 61. f6 {[%clk 0:00:07]}  Ne5 {[%clk 0:00:07]} 62. Bg7 {[%clk 0:00:08]}  Nf7 {[%clk 0:00:08]} 63. h6 {[%clk 0:00:08]}  Kd7 {[%clk 0:00:08]} 64. h7 {[%clk 0:00:09]}  Ke6 {[%clk 0:00:09]} 65. h8=Q {[%clk 0:00:09]}  Nxh8 {[%clk 0:00:09]} 66. Bxh8 {[%clk 0:00:10]}  Kf7 {[%clk 0:00:10]} 67. Kd4 {[%clk 0:00:11]}  Kg8 {[%clk 0:00:10]} 68. Bg7 {[%clk 0:00:10]}  Kf7 {[%clk 0:00:11]} 69. Kxd5 {[%clk 0:00:11]}  b4 {[%clk 0:00:11]} 70. axb4 {[%clk 0:00:11]}  a3 {[%clk 0:00:11]} 71. bxa3 {[%clk 0:00:11]}  Ke8 {[%clk 0:00:12]} 72. b5 {[%clk 0:00:10]}  Kf7 {[%clk 0:00:13]} 73. b6 {[%clk 0:00:11]} 1-0


[Site "https://www.chess.com"]

[Event "Titled Tuesday Blitz June 6 Late 2023"]
[White "Rasulov, Vugar"]
[Black "Hnydiuk, Aleksander"]
[WhiteFideId "13402390"]
[BlackFideId "1109057"]
[WhiteElo "2509"]
[BlackElo "2374"]
[Result "1-0"]
[Round "1"]
[TimeControl "180+2"]
[Date "2023.06.07"]
[WhiteClock "0:01:18"]
[BlackClock "0:00:28"]
[Board "24"]

1. e4 {[%clk 0:02:58]}  e6 {[%clk 0:02:59]} 2. d4 {[%clk 0:02:45]}  d5 {[%clk 0:03:00]} 3. Bd3 {[%clk 0:02:44]}  dxe4 {[%clk 0:02:58]} 4. Bxe4 {[%clk 0:02:45]}  Nf6 {[%clk 0:02:58]} 5. Bf3 {[%clk 0:02:45]}  c5 {[%clk 0:02:59]} 6. Ne2 {[%clk 0:02:45]}  Nc6 {[%clk 0:02:53]} 7. Be3 {[%clk 0:02:45]}  Nd5 {[%clk 0:02:46]} 8. Nbc3 {[%clk 0:02:40]}  Nxe3 {[%clk 0:02:44]} 9. fxe3 {[%clk 0:02:41]}  Be7 {[%clk 0:02:38]} 10. O-O {[%clk 0:02:29]}  O-O {[%clk 0:02:38]} 11. Kh1 {[%clk 0:02:27]}  Bd7 {[%clk 0:02:26]} 12. d5 {[%clk 0:02:23]}  Ne5 {[%clk 0:02:18]} 13. Nf4 {[%clk 0:02:18]}  Nxf3 {[%clk 0:01:56]} 14. Qxf3 {[%clk 0:02:19]}  e5 {[%clk 0:01:56]} 15. Nd3 {[%clk 0:02:14]}  Bd6 {[%clk 0:01:53]} 16. Ne4 {[%clk 0:02:10]}  Qe7 {[%clk 0:01:53]} 17. Qg3 {[%clk 0:02:06]}  f6 {[%clk 0:01:43]} 18. c4 {[%clk 0:02:03]}  Kh8 {[%clk 0:01:41]} 19. b4 {[%clk 0:01:58]}  b6 {[%clk 0:01:34]} 20. bxc5 {[%clk 0:01:58]}  bxc5 {[%clk 0:01:31]} 21. h3 {[%clk 0:01:55]}  Rfe8 {[%clk 0:01:27]} 22. Nxd6 {[%clk 0:01:53]}  Qxd6 {[%clk 0:01:27]} 23. e4 {[%clk 0:01:54]}  Rab8 {[%clk 0:01:20]} 24. Qe3 {[%clk 0:01:52]}  Rec8 {[%clk 0:01:20]} 25. Rab1 {[%clk 0:01:52]}  Rb6 {[%clk 0:01:21]} 26. Kh2 {[%clk 0:01:48]}  h6 {[%clk 0:01:19]} 27. Rb3 {[%clk 0:01:46]}  Ra6 {[%clk 0:01:06]} 28. Rf2 {[%clk 0:01:41]}  Ra4 {[%clk 0:01:04]} 29. Rc2 {[%clk 0:01:40]}  Kh7 {[%clk 0:01:03]} 30. Rb7 {[%clk 0:01:40]}  Be8 {[%clk 0:00:57]} 31. Qg3 {[%clk 0:01:35]}  Bg6 {[%clk 0:00:57]} 32. h4 {[%clk 0:01:30]}  Rc7 {[%clk 0:00:51]} 33. Rxc7 {[%clk 0:01:29]}  Qxc7 {[%clk 0:00:52]} 34. Qe3 {[%clk 0:01:29]}  Ra5 {[%clk 0:00:49]} 35. Rb2 {[%clk 0:01:29]}  Ra3 {[%clk 0:00:41]} 36. Qxc5 {[%clk 0:01:26]}  Qxc5 {[%clk 0:00:34]} 37. Nxc5 {[%clk 0:01:27]}  Rc3 {[%clk 0:00:32]} 38. Rb4 {[%clk 0:01:27]}  a5 {[%clk 0:00:29]} 39. Ra4 {[%clk 0:01:27]}  Be8 {[%clk 0:00:30]} 40. Rxa5 {[%clk 0:01:27]}  Rxc4 {[%clk 0:00:31]} 41. a4 {[%clk 0:01:21]}  Bg6 {[%clk 0:00:30]} 42. d6 {[%clk 0:01:21]}  Rd4 {[%clk 0:00:28]} 43. d7 {[%clk 0:01:18]} 1-0


[Site "https://www.chess.com"]

[Event "Titled Tuesday Blitz June 6 Late 2023"]
[White "Della Morte, German"]
[Black "Kevlishvili, Robby"]
[WhiteFideId "113522"]
[BlackFideId "1040634"]
[WhiteElo "2306"]
[BlackElo "2572"]
[Result "0-1"]
[Round "1"]
[TimeControl "180+2"]
[Date "2023.06.07"]
[WhiteClock "0:01:49"]
[BlackClock "0:01:35"]
[Board "25"]

1. e4 {[%clk 0:02:58]}  c6 {[%clk 0:02:58]} 2. d4 {[%clk 0:02:58]}  d5 {[%clk 0:02:55]} 3. exd5 {[%clk 0:02:59]}  cxd5 {[%clk 0:02:55]} 4. c3 {[%clk 0:02:59]}  Nf6 {[%clk 0:02:55]} 5. Nf3 {[%clk 0:02:59]}  Nc6 {[%clk 0:02:55]} 6. Bd3 {[%clk 0:02:58]}  Bg4 {[%clk 0:02:52]} 7. Bf4 {[%clk 0:02:58]}  e6 {[%clk 0:02:50]} 8. Nbd2 {[%clk 0:02:58]}  Bd6 {[%clk 0:02:49]} 9. Bg3 {[%clk 0:02:58]}  O-O {[%clk 0:02:49]} 10. Qb3 {[%clk 0:02:57]}  Rb8 {[%clk 0:02:45]} 11. O-O {[%clk 0:02:57]}  a6 {[%clk 0:02:44]} 12. Bh4 {[%clk 0:02:55]}  Bh5 {[%clk 0:02:42]} 13. Rfe1 {[%clk 0:02:48]}  Bg6 {[%clk 0:02:41]} 14. Bxg6 {[%clk 0:02:46]}  hxg6 {[%clk 0:02:42]} 15. Ne5 {[%clk 0:02:44]}  Be7 {[%clk 0:02:42]} 16. Nd3 {[%clk 0:02:40]}  b5 {[%clk 0:02:40]} 17. a3 {[%clk 0:02:39]}  Nd7 {[%clk 0:02:36]} 18. Bg3 {[%clk 0:02:37]}  Rc8 {[%clk 0:02:36]} 19. Nb4 {[%clk 0:02:36]}  Qb6 {[%clk 0:02:32]} 20. Nf3 {[%clk 0:02:34]}  Na5 {[%clk 0:02:28]} 21. Qc2 {[%clk 0:02:33]}  Rfe8 {[%clk 0:02:24]} 22. Re2 {[%clk 0:02:32]}  Nc4 {[%clk 0:02:23]} 23. Rae1 {[%clk 0:02:30]}  Nf6 {[%clk 0:02:21]} 24. Nd2 {[%clk 0:02:28]}  a5 {[%clk 0:02:21]} 25. Nd3 {[%clk 0:02:27]}  Nxd2 {[%clk 0:02:15]} 26. Qxd2 {[%clk 0:02:26]}  b4 {[%clk 0:02:13]} 27. axb4 {[%clk 0:02:26]}  axb4 {[%clk 0:02:13]} 28. Nxb4 {[%clk 0:02:26]}  Bxb4 {[%clk 0:02:12]} 29. cxb4 {[%clk 0:02:27]}  Ne4 {[%clk 0:02:12]} 30. Qd1 {[%clk 0:02:19]}  Qxb4 {[%clk 0:02:11]} 31. f3 {[%clk 0:02:18]}  Nxg3 {[%clk 0:02:11]} 32. hxg3 {[%clk 0:02:19]}  Rc4 {[%clk 0:02:11]} 33. Rd2 {[%clk 0:02:20]}  Rb8 {[%clk 0:02:11]} 34. g4 {[%clk 0:02:18]}  Qa5 {[%clk 0:02:09]} 35. Re3 {[%clk 0:02:15]}  Rbb4 {[%clk 0:02:07]} 36. Red3 {[%clk 0:02:14]}  Qb6 {[%clk 0:02:07]} 37. b3 {[%clk 0:02:13]}  Rxd4 {[%clk 0:01:47]} 38. Rxd4 {[%clk 0:02:13]}  e5 {[%clk 0:01:47]} 39. Kh2 {[%clk 0:02:09]}  Rxd4 {[%clk 0:01:47]} 40. Rxd4 {[%clk 0:02:09]}  exd4 {[%clk 0:01:47]} 41. Qd3 {[%clk 0:02:09]}  Qc7+ {[%clk 0:01:44]} 42. Kg1 {[%clk 0:02:04]}  Qc3 {[%clk 0:01:44]} 43. Qb5 {[%clk 0:02:00]}  d3 {[%clk 0:01:42]} 44. Qe8+ {[%clk 0:02:00]}  Kh7 {[%clk 0:01:42]} 45. Qe7 {[%clk 0:01:58]}  f6 {[%clk 0:01:36]} 46. Qd6 {[%clk 0:01:50]}  Qe1+ {[%clk 0:01:34]} 47. Kh2 {[%clk 0:01:49]}  d2 {[%clk 0:01:35]} 0-1


[Site "https://www.chess.com"]